{"text_format":"1","workbook":"xlsx","n_sheets":2,"sheets":["يومي","جدول"],"not_rendered":{"charts":0,"images":0,"macros":1,"external_links":5,"defined_names":76,"comments":0,"pivot_tables":0},"unopened":[],"bounds":{"document_bytes":16777216,"sheet_cells":100000,"rows_first":2000,"rows_last":500,"rows_between":2000,"halvings":0,"cell_chars":16384,"cell_head_chars":4096},"cells_cut":0,"cells_raw":0,"read":"whole","date_system":"1900"}

{"sheet":"يومي","index":0,"n_rows":146,"n_cols":14,"rows_kept":146,"cut":false,"hidden":false,"merged":[[98,6,98,7],[98,8,98,9],[98,10,98,11],[98,12,98,13],[111,0,112,1],[113,0,113,1],[114,0,114,1],[115,0,115,1],[116,0,116,1],[98,4,98,5],[85,12,85,13],[84,0,84,4],[74,0,74,1],[75,0,75,1],[76,0,76,1],[77,0,77,1],[78,0,78,1],[72,0,73,1],[72,2,72,3],[72,4,72,5],[72,6,72,7],[72,8,72,9],[72,10,72,11],[72,12,72,13],[85,0,86,1],[40,0,40,1],[41,0,41,1],[35,8,35,9],[35,10,35,11],[35,12,35,13],[37,0,37,1],[38,0,38,1],[39,0,39,1],[35,0,36,1],[35,2,35,3],[35,4,35,5],[35,6,35,7],[25,0,26,1],[25,2,25,3],[25,4,25,5],[25,6,25,7],[30,0,30,1],[31,0,31,1],[1,2,1,5],[24,0,24,5],[34,0,34,5],[29,0,29,1],[10,0,15,0],[9,0,9,1],[44,12,44,13],[46,0,46,1],[47,0,47,1],[43,0,43,5],[44,0,45,1],[44,2,44,3],[44,4,44,5],[44,6,44,7],[3,12,3,13],[5,0,5,1],[6,0,6,1],[7,0,7,1],[8,0,8,1],[3,0,4,1],[3,2,3,3],[3,4,3,5],[3,6,3,7],[3,8,3,9],[3,10,3,11],[25,8,25,9],[25,10,25,11],[25,12,25,13],[27,0,27,1],[28,0,28,1],[48,0,48,1],[49,0,49,1],[50,0,50,1],[58,0,58,5],[59,0,60,1],[59,2,59,3],[59,4,59,5],[44,8,44,9],[44,10,44,11],[62,0,62,1],[63,0,63,1],[64,0,64,1],[65,0,65,1],[59,6,59,7],[59,8,59,9],[59,10,59,11],[59,12,59,13],[61,0,61,1],[87,0,87,1],[88,0,88,1],[89,0,89,1],[90,0,90,1],[85,2,85,3],[85,4,85,5],[85,6,85,7],[85,8,85,9],[85,10,85,11],[117,0,117,1],[91,0,91,1],[98,0,99,1],[100,0,100,1],[101,0,101,1],[102,0,102,1],[103,0,103,1],[104,0,104,1],[98,2,98,3],[97,0,97,4],[110,0,110,5],[138,0,138,5],[139,0,140,1],[141,0,141,1],[142,0,142,1],[143,0,143,1],[144,0,144,1],[145,0,145,1],[123,0,123,5],[124,0,125,1],[126,0,126,1],[127,0,127,1],[128,0,128,1],[129,0,129,1],[130,0,130,1]]}
[]
[null,null,"جدول الصف الأول شبعة أ"]
[]
["اليوم",null,"الدرس الأول",null,"الدرس الثاني",null,"الدرس الثالث",null,"الدرس الرابع",null,"الدرس الخامس",null,"الدرس السادس"]
[null,null,"المادة","المعلم","المادة","المعلم","المادة","المعلم","المادة","المعلم","المادة","المعلم","المادة","المعلم"]
["الاحد",null,{"$f":"INDIRECT(ADDRESS(6,3,3,1,\"جدول\"))","v":"رياضيات"},{"$f":"INDIRECT(ADDRESS(6,4,3,1,\"جدول\"))","v":"فرحان."},{"$f":"INDIRECT(ADDRESS(7,3,3,1,\"جدول\"))","v":"إسلامية"},{"$f":"INDIRECT(ADDRESS(7,4,3,1,\"جدول\"))","v":"شيماء"},{"$f":"INDIRECT(ADDRESS(8,3,3,1,\"جدول\"))","v":"إنكليزي"},{"$f":"INDIRECT(ADDRESS(8,4,3,1,\"جدول\"))","v":"اسراء."},{"$f":"INDIRECT(ADDRESS(9,3,3,1,\"جدول\"))","v":"عربي"},{"$f":"INDIRECT(ADDRESS(9,4,3,1,\"جدول\"))","v":"فرحان ."},{"$f":"INDIRECT(ADDRESS(10,3,3,1,\"جدول\"))","v":"فنية"},{"$f":"INDIRECT(ADDRESS(10,4,3,1,\"جدول\"))","v":"فرحان ."},{"$f":"INDIRECT(ADDRESS(11,3,3,1,\"جدول\"))","v":0},{"$f":"INDIRECT(ADDRESS(11,4,3,1,\"جدول\"))","v":0}]
["الاثنين",null,{"$f":"INDIRECT(ADDRESS(12,3,3,1,\"جدول\"))","v":"إنكليزي"},{"$f":"INDIRECT(ADDRESS(12,4,3,1,\"جدول\"))","v":"اسراء."},{"$f":"INDIRECT(ADDRESS(13,3,3,1,\"جدول\"))","v":"رياضيات"},{"$f":"INDIRECT(ADDRESS(13,4,3,1,\"جدول\"))","v":"فرحان"},{"$f":"INDIRECT(ADDRESS(14,3,3,1,\"جدول\"))","v":"إسلامية"},{"$f":"INDIRECT(ADDRESS(14,4,3,1,\"جدول\"))","v":"شيماء"},{"$f":"INDIRECT(ADDRESS(15,3,3,1,\"جدول\"))","v":"علوم"},{"$f":"INDIRECT(ADDRESS(15,4,3,1,\"جدول\"))","v":"باسط ."},{"$f":"INDIRECT(ADDRESS(16,3,3,1,\"جدول\"))","v":"عربي"},{"$f":"INDIRECT(ADDRESS(16,4,3,1,\"جدول\"))","v":"فرحان ."},{"$f":"INDIRECT(ADDRESS(17,3,3,1,\"جدول\"))","v":0},{"$f":"INDIRECT(ADDRESS(17,4,3,1,\"جدول\"))","v":0}]
["الثلاثاء",null,{"$f":"INDIRECT(ADDRESS(18,3,3,1,\"جدول\"))","v":"عربي"},{"$f":"INDIRECT(ADDRESS(18,4,3,1,\"جدول\"))","v":"فرحان ."},{"$f":"INDIRECT(ADDRESS(19,3,3,1,\"جدول\"))","v":"عربي"},{"$f":"INDIRECT(ADDRESS(19,4,3,1,\"جدول\"))","v":"فرحان"},{"$f":"INDIRECT(ADDRESS(20,3,3,1,\"جدول\"))","v":"علوم"},{"$f":"INDIRECT(ADDRESS(20,4,3,1,\"جدول\"))","v":"باسط"},{"$f":"INDIRECT(ADDRESS(21,3,3,1,\"جدول\"))","v":"رياضيات"},{"$f":"INDIRECT(ADDRESS(21,4,3,1,\"جدول\"))","v":"فرحان ."},{"$f":"INDIRECT(ADDRESS(22,3,3,1,\"جدول\"))","v":"عربي"},{"$f":"INDIRECT(ADDRESS(22,4,3,1,\"جدول\"))","v":"فرحان "},{"$f":"INDIRECT(ADDRESS(23,3,3,1,\"جدول\"))","v":0},{"$f":"INDIRECT(ADDRESS(23,4,3,1,\"جدول\"))","v":0}]
["الاربعاء",null,{"$f":"INDIRECT(ADDRESS(24,3,3,1,\"جدول\"))","v":"عربي"},{"$f":"INDIRECT(ADDRESS(24,4,3,1,\"جدول\"))","v":"فرحان"},{"$f":"INDIRECT(ADDRESS(25,3,3,1,\"جدول\"))","v":"علوم"},{"$f":"INDIRECT(ADDRESS(25,4,3,1,\"جدول\"))","v":"باسط"},{"$f":"INDIRECT(ADDRESS(26,3,3,1,\"جدول\"))","v":"إنكليزي"},{"$f":"INDIRECT(ADDRESS(26,4,3,1,\"جدول\"))","v":"اسراء."},{"$f":"INDIRECT(ADDRESS(27,3,3,1,\"جدول\"))","v":"رياضة"},{"$f":"INDIRECT(ADDRESS(27,4,3,1,\"جدول\"))","v":"فرحان ."},{"$f":"INDIRECT(ADDRESS(28,3,3,1,\"جدول\"))","v":"رياضيات"},{"$f":"INDIRECT(ADDRESS(28,4,3,1,\"جدول\"))","v":"فرحان ."},{"$f":"INDIRECT(ADDRESS(29,3,3,1,\"جدول\"))","v":0},{"$f":"INDIRECT(ADDRESS(29,4,3,1,\"جدول\"))","v":0}]
["الخميس",null,{"$f":"INDIRECT(ADDRESS(30,3,3,1,\"جدول\"))","v":"عربي"},{"$f":"INDIRECT(ADDRESS(30,4,3,1,\"جدول\"))","v":"فرحان "},{"$f":"INDIRECT(ADDRESS(31,3,3,1,\"جدول\"))","v":"رياضة"},{"$f":"INDIRECT(ADDRESS(31,4,3,1,\"جدول\"))","v":"فرحان ."},{"$f":"INDIRECT(ADDRESS(32,3,3,1,\"جدول\"))","v":"إسلامية"},{"$f":"INDIRECT(ADDRESS(32,4,3,1,\"جدول\"))","v":"شيماء"},{"$f":"INDIRECT(ADDRESS(33,3,3,1,\"جدول\"))","v":"فنية"},{"$f":"INDIRECT(ADDRESS(33,4,3,1,\"جدول\"))","v":"فرحان ."},{"$f":"INDIRECT(ADDRESS(34,3,3,1,\"جدول\"))","v":"رياضيات"},{"$f":"INDIRECT(ADDRESS(34,4,3,1,\"جدول\"))","v":"فرحان ."},{"$f":"INDIRECT(ADDRESS(35,3,3,1,\"جدول\"))","v":0},{"$f":"INDIRECT(ADDRESS(35,4,3,1,\"جدول\"))","v":0}]
["الخميس",1]
[null,2]
[null,3]
[null,4]
[null,5]
[null,6,0,0,0,0,0,0,0,0,0,0,0,0]
[]
[]
[]
[]
[]
[]
[]
[]
["جدول الصفالاول شبعة ب"]
["اليوم",null,"الدرس الأول",null,"الدرس الثاني",null,"الدرس الثالث",null,"الدرس الرابع",null,"الدرس الخامس",null,"الدرس السادس"]
[null,null,"المادة","المعلم","المادة","المعلم","المادة","المعلم","المادة","المعلم","المادة","المعلم","المادة","المعلم"]
["الاحد",null,null,null,null,null,null,null,null,null,null,null,{"$f":"INDIRECT(ADDRESS(11,7,3,1,\"جدول\"))","v":0},{"$f":"INDIRECT(ADDRESS(11,8,3,1,\"جدول\"))","v":0}]
["الاثنين",null,null,null,null,null,null,null,null,null,null,null,{"$f":"INDIRECT(ADDRESS(17,7,3,1,\"جدول\"))","v":0},{"$f":"INDIRECT(ADDRESS(17,8,3,1,\"جدول\"))","v":0}]
["الثلاثاء",null,null,null,null,null,null,null,null,null,null,null,{"$f":"INDIRECT(ADDRESS(23,7,3,1,\"جدول\"))","v":0},{"$f":"INDIRECT(ADDRESS(23,8,3,1,\"جدول\"))","v":0}]
["الاربعاء",null,null,null,null,null,null,null,null,null,null,null,{"$f":"INDIRECT(ADDRESS(29,7,3,1,\"جدول\"))","v":0},{"$f":"INDIRECT(ADDRESS(29,8,3,1,\"جدول\"))","v":0}]
["الخميس",null,null,null,null,null,null,null,null,null,null,null,{"$f":"INDIRECT(ADDRESS(35,7,3,1,\"جدول\"))","v":0},{"$f":"INDIRECT(ADDRESS(35,8,3,1,\"جدول\"))","v":0}]
[]
[]
["جدول الصف الثاني شبعة أ"]
["اليوم",null,"الدرس الأول",null,"الدرس الثاني",null,"الدرس الثالث",null,"الدرس الرابع",null,"الدرس الخامس",null,"الدرس السادس"]
[null,null,"المادة","المعلم","المادة","المعلم","المادة","المعلم","المادة","المعلم","المادة","المعلم","المادة","المعلم"]
["الاحد"]
["الاثنين"]
["الثلاثاء"]
["الاربعاء"]
["الخميس"]
[]
["جدول الصف الثاني شبعة ب"]
["اليوم",null,"الدرس الأول",null,"الدرس الثاني",null,"الدرس الثالث",null,"الدرس الرابع",null,"الدرس الخامس",null,"الدرس السادس"]
[null,null,"المادة","المعلم","المادة","المعلم","المادة","المعلم","المادة","المعلم","المادة","المعلم","المادة","المعلم"]
["الاحد"]
["الاثنين"]
["الثلاثاء"]
["الاربعاء"]
["الخميس"]
[]
[]
[]
[]
[]
[]
[]
["جدول الصف الثالث شبعة أ"]
["اليوم",null,"الدرس الأول",null,"الدرس الثاني",null,"الدرس الثالث",null,"الدرس الرابع",null,"الدرس الخامس",null,"الدرس السادس"]
[null,null,"المادة","المعلم","المادة","المعلم","المادة","المعلم","المادة","المعلم","المادة","المعلم","المادة","المعلم"]
["الاحد"]
["الاثنين"]
["الثلاثاء"]
["الاربعاء"]
["الخميس"]
[]
[]
[]
[]
[]
[null,null,null,"جدول الصف الثالث شبعة ب"]
["اليوم",null,"الدرس الأول",null,"الدرس الثاني",null,"الدرس الثالث",null,"الدرس الرابع",null,"الدرس الخامس",null,"الدرس السادس"]
[null,null,"المادة","المعلم","المادة","المعلم","المادة","المعلم","المادة","المعلم","المادة","المعلم","المادة","المعلم"]
["الاحد"]
["الاثنين"]
["الثلاثاء"]
["الاربعاء"]
["الخميس"]
[]
[]
[]
[]
[]
["جدول الصف الرابع شبعة أ"]
["اليوم",null,"الدرس الأول",null,"الدرس الثاني",null,"الدرس الثالث",null,"الدرس الرابع",null,"الدرس الخامس",null,"الدرس السادس"]
[null,null,"المادة","المعلم","المادة","المعلم","المادة","المعلم","المادة","المعلم","المادة","المعلم","المادة","المعلم"]
["الاحد"]
["الاثنين"]
["الثلاثاء"]
["الاربعاء"]
["الخميس"]
[]
[]
[]
[]
[]
["جدول الصف الرابع شبعة ب"]
["اليوم",null,"الدرس الأول",null,"الدرس الثاني",null,"الدرس الثالث",null,"الدرس الرابع",null,"الدرس الخامس",null,"الدرس السادس"]
[null,null,"المادة","المعلم","المادة","المعلم","المادة","المعلم","المادة","المعلم","المادة","المعلم","المادة","المعلم"]
["الاحد"]
["الاثنين"]
["الثلاثاء"]
["الاربعاء"]
["الخميس"]
[]
[]
[]
[]
[]
["جدول الصف الخامس شبعة أ"]
["اليوم",null,"الدرس الأول",null,"الدرس الثاني",null,"الدرس الثالث",null,"الدرس الرابع",null,"الدرس الخامس",null,"الدرس السادس"]
[null,null,"المادة","المعلم","المادة","المعلم","المادة","المعلم","المادة","المعلم","المادة","المعلم","المادة","المعلم"]
["الاحد"]
["الاثنين"]
["الثلاثاء"]
["الاربعاء"]
["الخميس"]
[]
[]
[]
[]
[]
["جدول الصف الخامس شبعة ب"]
["اليوم",null,"الدرس الأول",null,"الدرس الثاني",null,"الدرس الثالث",null,"الدرس الرابع",null,"الدرس الخامس",null,"الدرس السادس"]
[null,null,"المادة","المعلم","المادة","المعلم","المادة","المعلم","المادة","المعلم","المادة","المعلم","المادة","المعلم"]
["الاحد"]
["الاثنين"]
["الثلاثاء"]
["الاربعاء"]
["الخميس"]
[]
[]
[]
[]
[]
[]
[]
["جدول الصف السادس شبعة أ"]
["اليوم",null,"الدرس الأول",null,"الدرس الثاني",null,"الدرس الثالث",null,"الدرس الرابع",null,"الدرس الخامس",null,"الدرس السادس"]
[null,null,"المادة","المعلم","المادة","المعلم","المادة","المعلم","المادة","المعلم","المادة","المعلم","المادة","المعلم"]
["الاحد"]
["الاثنين"]
["الثلاثاء"]
["الاربعاء"]
["الخميس"]

{"sheet":"جدول","index":1,"n_rows":34,"n_cols":24,"rows_kept":34,"cut":false,"hidden":false,"merged":[[17,0,22,0],[23,0,28,0],[29,0,33,0],[3,16,3,17],[3,18,3,19],[3,20,3,21],[3,22,3,23],[5,0,10,0],[11,0,16,0],[3,0,4,0],[3,2,3,3],[3,6,3,7],[3,10,3,11],[3,12,3,13],[3,14,3,15],[3,4,3,5],[3,8,3,9]]}
[]
[]
[]
["اليوم","الصفوف","الصف الأول أ",null,"الصف الأول ب",null,"الصف الثاني أ",null,"الصف الثاني ب",null,"الصف الثالث أ",null,"الصف الثالث ب",null,"الصف الرابع أ",null,"الصف الرابع ب",null,"الصف الخامس أ",null,"الصف الخامس ب",null,"الصف السادس"]
[null,"الدرس","المادة","المعلم","المادة","المعلم","المادة","المعلم","المادة","المعلم","المادة","المعلم","المادة","المعلم","المادة","المعلم","المادة","المعلم","المادة","المعلم","المادة","المعلم","المادة","المعلم"]
[{"$f":"'[1]جدول إجمالي الفصول'!D4","v":"الأحد"},1,"رياضيات","فرحان.","إنكليزي","اسراء","إسلامية","شيماء","علوم","فرحان","عربي","عبد حميد","إسلامية","وليد","إنكليزي","ورود","رياضيات","اسراء.","رياضيات","احمد","عربي","احمد جبار","إنكليزي","احمد شاكر"]
[null,2,"إسلامية","شيماء","عربي","حكيم","رياضيات","حكيم.","عربي","انفال","رياضيات","صباح","عربي","عبد حميد","إسلامية","أبو بكر","إنكليزي","ورود","إنكليزي","احمد شاكر","علوم","اسراء.","رياضيات","عصام"]
[null,3,"إنكليزي","اسراء.","رياضيات","حكيم","عربي","حكيم .","إسلامية","شيماء","إنكليزي","ورود","رياضيات","صباح","رياضيات","عصام","إسلامية","أبو بكر","إسلامية","وليد","إنكليزي","احمد شاكر","فنية","احمد جبار"]
[null,4,"عربي","فرحان .","إسلامية ","شيماء","علوم","أبو بكر","فنية","صباح","فنية","عبيد","إسلامية","وليد","رياضة","عصام","عربي","طارق","عربي","احمد جبار","رياضيات","احمد","علوم","اسراء."]
[null,5,"فنية","فرحان .","فنية","بكر","إنكليزي","احمد شاكر","رياضيات","فرحان","عربي","عبد حميد","إنكليزي","ورود","عربي","طارق","إسلامية","أبو بكر","علوم","اسراء.","إسلامية","وليد","عربي","احمد جبار"]
[null,6,0,0,null,null,0,0,null,null,0,0,0,0,0,0,0,0,0,0,0,0,0,0]
[{"$f":"'[1]جدول إجمالي الفصول'!P4","v":"الاثنين"},1,"إنكليزي","اسراء.","إسلامية ","شيماء","عربي","حكيم","إنكليزي","ورود","عربي","عبد حميد","رياضة","عبيد","إسلامية","أبو بكر","عربي","طارق","إنكليزي","احمد شاكر","اجتماعيات","باسط","عربي","احمد جبار"]
[null,2,"رياضيات","فرحان","عربي","حكيم","إسلامية","شيماء","رياضة","عبيد","إسلامية","باسط","عربي","عبد حميد","إسلامية","أبو بكر","رياضة","عصام","فنية","احمد","عربي","احمد جبار","علوم","اسراء."]
[null,3,"إسلامية","شيماء","رياضيات","حكيم","علوم","أبو بكر","عربي","انفال","رياضة","عبيد","رياضيات","صباح","عربي","طارق","رياضيات","اسراء.","اجتماعيات","باسط","إنكليزي","احمد شاكر","رياضيات","عصام"]
[null,4,"علوم","باسط .","علوم","باسط","علوم","أبو بكر","إسلامية","شيماء","فنية","صباح","عربي","عبد حميد","رياضيات","عصام","عربي","طارق","علوم","اسراء.","فنية","احمد","إنكليزي","احمد شاكر"]
[null,5,"عربي","فرحان .","إنكليزي","اسراء","رياضيات","حكيم","عربي","انفال","رياضيات","صباح","عربي","عبد حميد","فنية","طارق","إسلامية","أبو بكر","عربي","احمد جبار","علوم","اسراء.","اجتماعيات","باسط"]
[null,6,0,0,null,null,0,0,null,null,0,0,0,0,0,0,0,0,0,0,0,0,0,0]
[{"$f":"'[1]جدول إجمالي الفصول'!AB4","v":"الثلاثاء"},1,"عربي","فرحان .","إسلامية","شيماء","فنية","صباح","رياضيات","فرحان","عربي","عبد حميد","رياضة","عبيد","عربي","طارق","رياضيات","اسراء.","رياضيات","احمد","اجتماعيات","باسط","عربي","احمد جبار"]
[null,2,"عربي","فرحان","علوم","باسط","رياضة","عبيد","عربي","انفال","رياضيات","صباح","عربي","عبد حميد","علوم","انفال.","فنية","طارق","اجتماعيات","باسط .","علوم","اسراء.","رياضيات","عصام"]
[null,3,"علوم","باسط","عربي","حكيم","رياضيات","حكيم .","عربي","انفال","رياضة","عبيد","فنية","صباح","رياضيات","عصام","عربي","طارق","عربي","احمد جبار","رياضيات","احمد","علوم","اسراء."]
[null,4,"رياضيات","فرحان .","رياضيات","حكيم","عربي","حكيم .","إنكليزي","ورود","فنية","صباح","علوم","انفال","رياضة","عصام","رياضيات","اسراء.","فنية","احمد","رياضة","احمد جبار","اجتماعيات","باسط"]
[null,5,"عربي","فرحان ","رياضة","فرحان .","عربي","حكيم","إسلامية","شيماء","إسلامية","باسط","رياضيات","صباح","عربي","طارق","علوم","انفال .","علوم","اسراء.","عربي","احمد جبار","إسلامية","احمد"]
[null,6,0,0,null,null,0,0,null,null,0,0,0,0,0,0,0,0,0,0,0,0]
[{"$f":"'[1]جدول إجمالي الفصول'!AN4","v":"الأربعاء"},1,"عربي","فرحان","علوم","باسط","رياضيات","حكيم","عربي","انفال","رياضيات","صباح","عربي","عبد حميد","عربي","طارق","علوم","انفال .","إنكليزي","احمد شاكر","عربي","احمد جبار","إسلامية","احمد"]
[null,2,"علوم","باسط","فنية","أبو بكر","فنية","صباح","رياضة","عبيد","عربي","عبد حميد","علوم","انفال","رياضيات","عصام","إنكليزي","ورود","عربي","احمد جبار","رياضيات","احمد","إنكليزي","احمد شاكر"]
[null,3,"إنكليزي","اسراء.","رياضيات","حكيم","رياضيات","حكيم ","رياضيات","فرحان","علوم","انفال","فنية","صباح","إنكليزي","ورود","عربي","طارق","رياضة","احمد جبار","اجتماعيات","باسط","رياضيات","عصام"]
[null,4,"رياضة","فرحان .","عربي","حكيم","إنكليزي","احمد شاكر","علوم","فرحان","عربي","عبد حميد","علوم","انفال .","اجتماعيات","سعد","رياضيات","اسراء.","اجتماعيات","باسط","رياضة","عصام","عربي","احمد جبار"]
[null,5,"رياضيات","فرحان .","عربي","حكيم","عربي","حكيم .","رياضيات","فرحان","إنكليزي","ورود","رياضيات","صباح","علوم","انفال","اجتماعيات","سعد","رياضيات","احمد","إنكليزي","احمد شاكر","اجتماعيات","باسط"]
[null,6,0,0,null,null,0,0,null,null,null,null,0,0,0,0,0,0,0,0,0,0,0,0]
[{"$f":"'[1]جدول إجمالي الفصول'!AZ4","v":"الخميس"},1,"عربي","فرحان ","رياضة","فرحان .","رياضيات","حكيم","علوم","فرحان","إنكليزي","ورود","رياضيات","صباح","علوم","انفال","عربي","طارق","عربي","جبار","إسلامية","وليد","إنكليزي","احمد شاكر"]
[null,2,"رياضة","فرحان .","رياضيات","حكيم","إسلامية","شيماء","رياضة","عبيد","علوم","انفال","عربي","عبد حميد","عربي","طارق","إنكليزي","ورود","إسلامية","وليد","عربي","جبار","رياضة","عصام"]
[null,3,"إسلامية","شيماء","فنية","أبو بكر","رياضة","عبيد","رياضيات","فرحان","عربي","عبد حميد","إسلامية","وليد","اجتماعيات","سعد","علوم","انفال .","رياضيات","احمد","إنكليزي","احمد شاكر","رياضيات","عصام"]
[null,4,"فنية","فرحان .","إنكليزي","اسراء","عربي","حكيم","عربي","فرحان","علوم","انفال","إنكليزي","ورود","رياضيات","عصام","فنية","طارق","إنكليزي","احمد شاكر","إسلامية","وليد","إسلامية","احمد"]
[null,5,"رياضيات","فرحان .","عربي","حكيم","إنكليزي","احمد شاكر","رياضيات","فرحان","رياضيات","صباح","علوم","انفال","إنكليزي","ورود","اجتماعيات","سعد","إسلامية","وليد","رياضيات","احمد","عربي","جبار"]